bitfinex-derivatives/quotes_ETHF0:USTF0_20251103
["timestamp","ask_amount","ask_price","bid_price","bid_amount"]
[1762160827455,2.39385183,3733.9,3733.8,0.0418]
[1762160827654,0.29188364,3734.0,3733.5,3.2078]
[1762160827853,0.29188364,3734.0,3733.9,3.2078]
[1762160827854,3.16723547,3734.0,3733.9,3.2078]
[1762160828159,0.4815,3733.6,3733.5,3.2078]
[1762160828460,2.39385183,3733.9,3733.5,3.2078]
[1762160828662,9.75489509,3733.7,3733.5,3.2078]
[1762160828860,2.39385183,3733.8,3733.5,3.21097404]
[1762160829159,0.4815,3733.6,3733.5,3.21097404]
[1762160829356,10.23639509,3733.6,3733.5,3.21097404]
[1762160829558,9.75489509,3733.6,3733.5,3.21097404]
[1762160829957,10.23639509,3733.6,3733.5,3.21097404]
[1762160830153,0.29188364,3734.0,3733.5,3.25277404]
[1762160830359,0.29188364,3734.0,3733.9,3.2496]
[1762160831657,0.00308364,3734.0,3733.9,3.2496]
[1762160832057,3.31293547,3734.0,3733.9,3.2078]
[1762160832255,13.06783056,3734.0,3733.9,3.2078]
[1762160833761,0.00308364,3734.0,3733.9,3.6529]
[1762160834263,9.75797873,3734.0,3733.9,3.6529]
[1762160834664,0.47358364,3734.0,3733.9,3.2078]
[1762160835065,10.22847873,3734.0,3733.9,3.2078]
[1762160835663,0.00308364,3734.0,3733.9,3.6529]
[1762160836059,9.75797873,3734.0,3733.9,3.6529]
[1762160836461,0.00308364,3734.0,3733.9,3.6529]
[1762160840463,13.06783056,3734.0,3733.9,3.2078]
[1762160841365,12.15183056,3734.0,3733.9,3.6529]
[1762160841864,12.15183056,3734.0,3733.9,3.2078]
[1762160841865,13.06783056,3734.0,3733.9,3.2078]
[1762160842364,12.62233056,3734.0,3733.9,3.2078]
[1762160842562,13.06783056,3734.0,3733.9,3.2078]
[1762160842866,10.67397873,3734.0,3733.9,3.2078]
[1762160844067,10.67397873,3734.0,3733.5,3.21097404]
[1762160844068,0.4455,3733.6,3733.5,3.21097404]
[1762160844462,10.20039509,3733.6,3733.5,3.21097404]
[1762160844662,9.75489509,3733.6,3733.5,3.65607404]
[1762160844863,0.47358364,3734.0,3733.6,0.4451]
[1762160845160,9.75489509,3733.8,3733.6,0.4451]
[1762160845366,11.98585183,3733.9,3733.8,0.4451]
[1762160845569,9.75489509,3733.7,3733.5,3.21097404]
[1762160845757,2.39385183,3733.9,3733.5,3.21097404]
[1762160845963,0.7511,3733.6,3733.5,3.21097404]
[1762160846359,0.00308364,3734.0,3733.9,0.7221]
[1762160846558,0.4388,3736.0,3734.6,0.7221]
[1762160846559,0.4388,3735.5,3734.6,0.7221]
[1762160846764,8.279,3735.0,3734.6,3.9299]
[1762160846965,8.7178,3735.0,3734.6,3.9299]
[1762160849164,0.7761,3734.7,3734.6,3.2078]
[1762160849471,0.77879479,3734.7,3734.6,3.2078]
[1762160850166,0.02769479,3734.7,3734.6,3.2078]
[1762160850370,0.02769479,3734.7,3734.6,3.9299]
[1762160851063,3.2078,3735.8,3735.4,0.7221]
[1762160851362,3.2078,3736.4,3735.8,0.7221]
[1762160851563,0.7511,3736.2,3736.1,0.70942158]
[1762160851870,0.7511,3735.6,3735.5,0.70942158]
[1762160852069,0.7511,3735.2,3735.1,0.94601786]
[1762160852264,0.7511,3735.2,3735.0,2.46926519]
[1762160852768,0.4388,3735.5,3735.0,2.46926519]
[1762160852973,0.00322162,3735.2,3735.0,2.46926519]
[1762160853168,0.7511,3735.1,3735.0,2.46926519]
[1762160854869,3.2078,3736.7,3735.1,0.7221]
[1762160855069,3.2078,3736.7,3736.0,3.2078]
[1762160855674,0.00322162,3736.6,3736.0,3.2078]
[1762160855877,0.00322162,3736.5,3736.0,3.2078]
[1762160856074,0.00322162,3736.1,3736.0,3.9299]
[1762160856276,0.00322162,3736.5,3736.0,3.9299]
[1762160856478,9.612,3736.4,3736.0,3.9299]
[1762160856675,0.00322162,3736.1,3736.0,3.9299]
[1762160856874,9.61522162,3736.4,3736.0,3.9299]
[1762160857675,0.4388,3736.2,3736.0,3.2078]
[1762160858067,0.00322162,3736.1,3736.0,3.2078]
[1762160858769,0.4388,3738.0,3736.6,0.7221]
[1762160859072,9.599,3737.5,3736.9,3.2078]
[1762160859276,9.599,3737.5,3737.4,0.7221]
[1762160860777,1.1899,3737.4,3736.9,3.2078]
[1762160860975,0.7511,3737.0,3736.9,3.2078]
[1762160861176,0.4388,3736.8,3736.4,3.2078]
[1762160861374,0.7511,3736.5,3736.4,3.2078]
[1762160861678,9.716,3736.5,3736.4,3.21081975]
[1762160862073,10.4562,3736.5,3736.4,3.21081975]
[1762160862375,10.4562,3736.5,3736.4,0.00301975]
[1762160862573,10.4562,3736.5,3735.8,3.2078]
[1762160862574,0.7402,3735.9,3735.8,3.2078]
[1762160862877,10.4542,3735.9,3735.8,3.2078]
[1762160863078,3.2078,3736.8,3736.7,0.7806]
[1762160863277,1.63601775,3738.0,3736.8,0.3585]
[1762160863278,1.98876724,3738.0,3736.8,0.3585]
[1762160863476,0.5603,3738.0,3737.4,4.4523]
[1762160863676,0.5603,3738.6,3737.4,4.4523]
[1762160863977,5.665,3738.1,3737.4,4.4523]
[1762160864579,5.665,3738.1,3738.0,0.7806]
[1762160864778,5.665,3738.1,3738.0,3.9884]
[1762160864978,9.3116,3738.1,3738.0,3.9884]
[1762160865578,9.31449549,3738.1,3738.0,3.9884]
[1762160866176,0.00289549,3738.1,3738.0,3.9884]
[1762160866577,3.64949549,3738.1,3738.0,3.9884]
[1762160866979,3.64949549,3738.1,3738.0,4.2342]
[1762160867175,0.025,3739.7,3738.6,0.3585]
[1762160867379,3.6466,3739.4,3739.3,3.2078]
[1762160867579,0.025,3739.7,3739.3,3.2078]
[1762160867779,3.6466,3739.4,3739.3,3.2078]
[1762160868289,13.48865746,3739.4,3739.3,3.2078]
[1762160868582,3.64865746,3739.4,3739.3,3.2078]
[1762160868778,0.00205746,3739.4,3739.3,3.9884]
[1762160869284,0.025,3739.7,3739.6,0.7806]
[1762160870378,0.02715605,3739.7,3739.6,0.78329392]
[1762160870580,3.67375605,3739.7,3739.6,0.00269392]
[1762160870778,0.02715605,3739.7,3739.6,0.00269392]
[1762160871487,0.02715605,3739.7,3739.6,0.78329392]
[1762160871887,3.67375605,3739.7,3739.6,0.78329392]
[1762160872087,0.02715605,3739.7,3739.6,0.78329392]
[1762160872888,3.67375605,3739.7,3739.6,0.00269392]
[1762160873186,3.67375605,3739.7,3739.6,0.78329392]
[1762160873385,0.02715605,3739.7,3739.6,0.78329392]
[1762160873589,9.88315605,3739.7,3739.6,0.78329392]
[1762160873788,13.52975605,3739.7,3739.6,0.78329392]
[1762160873984,9.88315605,3739.7,3739.6,0.78329392]
[1762160874181,3.2078,3741.9,3740.7,0.7806]
[1762160874386,3.2078,3741.9,3741.3,3.2078]
[1762160874685,8.806,3741.8,3741.3,3.2078]
[1762160874891,3.6466,3741.6,3741.3,3.2078]
[1762160875086,3.64967654,3741.6,3741.3,3.2078]
[1762160875291,3.64967654,3741.6,3741.3,3.9884]
[1762160875586,0.5603,3742.8,3741.3,3.2078]
[1762160875792,0.7402,3742.1,3741.6,3.2078]
[1762160876191,9.955,3742.0,3741.6,3.2078]
[1762160876590,9.9569945,3742.0,3741.6,3.2078]
[1762160877696,0.0019945,3742.0,3741.9,0.7806]
[1762160878690,0.0019945,3742.0,3741.6,3.2078]
[1762160878891,9.982,3741.9,3741.6,3.2078]
[1762160879288,0.0019945,3742.0,3741.9,0.7806]
[1762160879489,0.0019945,3742.0,3741.6,3.2078]
[1762160879693,9.9819945,3742.0,3741.6,3.2078]
[1762160880491,0.0019945,3742.0,3741.6,3.2078]
[1762160880699,9.977,3741.9,3741.6,3.2078]
[1762160881097,0.0019945,3742.0,3741.6,3.2078]
[1762160881298,3.439,3741.9,3741.8,0.7806]
[1762160881499,0.0019945,3742.0,3741.8,0.7806]
[1762160881803,9.97,3741.9,3741.8,0.7806]
[1762160882304,0.0019945,3742.0,3741.8,0.7806]
[1762160882499,9.97,3741.9,3741.8,0.7806]
[1762160882900,9.97,3741.9,3741.6,3.2078]
[1762160883197,0.7402,3741.7,3741.6,3.2078]
[1762160883801,10.6982,3741.7,3741.6,3.2078]
[1762160884898,0.0019945,3742.0,3741.9,0.7806]
[1762160885102,9.9509945,3742.0,3741.9,0.7806]
[1762160885305,9.9509945,3742.0,3741.6,3.2078]
[1762160885501,0.7402,3741.7,3741.6,3.2078]
[1762160885900,0.0019945,3742.0,3741.6,3.2078]
[1762160886105,3.415,3741.9,3741.6,3.2078]
[1762160886308,9.948,3741.8,3741.7,0.7806]
[1762160886502,9.948,3741.8,3741.6,3.2078]
[1762160886703,9.946,3741.7,3741.6,3.2078]
[1762160887611,10.6862,3741.7,3741.6,3.2078]
[1762160888211,0.0019945,3742.0,3741.6,3.2078]
[1762160888410,0.7402,3741.7,3741.6,3.2078]
[1762160889410,10.6722,3741.7,3741.6,3.2078]
[1762160889609,0.7402,3741.7,3741.6,3.2078]
[1762160889809,4.8382,3741.7,3741.6,3.2078]
[1762160890805,4.8382,3741.7,3739.9,40.8]
[1762160891009,3.2078,3741.2,3740.4,0.5534]
[1762160891211,7.3058,3741.7,3740.6,3.2078]
[1762160891506,0.7402,3740.7,3740.6,3.2078]
[1762160891704,10.6642,3740.7,3740.2,3.2078]
[1762160892511,0.8989,3740.3,3739.8,3.734]
[1762160893104,3.2078,3740.6,3739.8,3.734]
[1762160893105,9.917,3740.2,3739.8,3.734]
[1762160895018,3.2078,3740.7,3739.8,3.734]
[1762160895203,3.2097945,3742.0,3741.0,1.4965]
[1762160895612,4.009,3741.9,3741.0,1.4965]
[1762160896306,3.2097945,3742.0,3741.1,3.2078]
[1762160896506,0.0019945,3742.0,3741.6,3.7869]
[1762160896712,9.919,3741.9,3741.8,0.9174]
[1762160896913,9.919,3741.9,3741.6,3.7869]
[1762160897310,9.919,3741.9,3741.6,3.2078]
[1762160897715,0.8989,3741.7,3741.6,3.2078]
[1762160898012,0.8989,3741.7,3741.0,0.5791]
[1762160898315,4.1067,3741.7,3741.0,0.5791]
[1762160899212,4.296,3741.6,3741.0,0.5791]
[1762160899510,4.296,3741.6,3740.8,3.2078]
[1762160899709,0.8989,3740.9,3740.8,3.2078]
[1762160899915,10.8009,3740.9,3740.8,3.2078]
[1762160900316,10.8119,3740.9,3740.8,3.2078]
[1762160900511,3.2078,3741.3,3740.8,3.2078]
[1762160900712,9.913,3741.2,3740.8,3.2078]
[1762160901322,3.2078,3741.3,3740.8,3.2078]
[1762160901516,3.2078,3741.8,3740.8,3.2078]
[1762160901715,4.433,3741.7,3740.8,3.2078]
[1762160901921,3.2078,3741.4,3740.8,3.2078]
[1762160902122,0.8989,3740.9,3740.8,3.2078]
[1762160902324,14.0127,3740.9,3740.3,3.2078]
[1762160902818,0.8989,3740.0,3739.9,4.05896424]
[1762160903023,0.8989,3740.0,3739.6,0.00269392]
[1762160903024,0.8989,3739.7,3739.6,0.00269392]
[1762160903221,1.11123563,3739.7,3739.6,0.00269392]
[1762160903916,1.31529847,3739.7,3738.9,3.2078]
[1762160904121,0.8989,3739.0,3738.9,3.2078]
[1762160904318,6.60723563,3739.0,3738.1,8.59380647]
[1762160904521,0.21233563,3738.9,3738.1,8.59380647]
[1762160904820,0.21233563,3738.8,3738.1,8.59380647]
[1762160905017,0.21233563,3738.7,3738.1,8.59380647]
[1762160905219,8.7038,3739.0,3738.1,8.59380647]
[1762160905520,0.0025848,3738.7,3738.1,8.59690945]
[1762160906523,0.0025848,3738.7,3738.1,0.00310298]
[1762160907622,3.2078,3738.6,3738.1,0.00310298]
[1762160907924,0.21157896,3738.5,3738.1,0.00310298]
[1762160908123,3.2078,3738.6,3738.1,0.00310298]
[1762160908325,0.0025848,3738.7,3738.1,0.00310298]
[1762160908326,4.1805,3738.2,3738.1,0.00310298]
[1762160908519,14.27908364,3738.2,3738.1,0.00310298]
[1762160908827,4.39208364,3738.2,3738.1,0.00310298]
[1762160909019,14.28708364,3738.2,3738.1,0.00310298]
[1762160909220,14.0755,3738.2,3738.1,0.00310298]
[1762160909418,4.1805,3738.2,3738.1,0.00310298]
[1762160909626,14.0755,3738.2,3738.1,0.00310298]
[1762160909825,4.1805,3738.2,3738.1,0.00310298]
[1762160910128,3.2078,3738.6,3738.1,0.00310298]
[1762160910325,4.46330272,3738.5,3738.1,0.00310298]
[1762160910523,0.9727,3738.2,3738.1,0.00310298]
[1762160910823,10.8627,3738.2,3738.1,0.00310298]
[1762160911025,10.8607,3738.2,3738.1,0.00310298]
[1762160911323,14.0685,3738.2,3738.1,0.00310298]
[1762160911520,4.1805,3738.2,3738.1,0.00310298]
[1762160911721,8.4325,3738.2,3738.1,0.00310298]
[1762160911921,8.4325,3738.2,3737.2,3.2078]
[1762160912121,0.9727,3737.3,3737.2,3.2078]
[1762160912316,10.8557,3737.3,3736.7,3.2078]
[1762160912626,10.8557,3737.3,3736.6,3.2078]
[1762160913024,9.88,3737.2,3736.8,0.00251629]
[1762160913221,0.9727,3736.9,3736.8,0.00251629]
[1762160914127,10.8567,3736.9,3736.8,0.00251629]
[1762160914825,9.879,3736.9,3736.8,0.60471629]
[1762160915126,9.879,3736.9,3736.8,1.56781629]
[1762160915428,10.8517,3736.9,3736.8,0.00251629]
[1762160918720,11.06067649,3736.9,3736.8,0.00251629]
[1762160918924,0.9727,3736.4,3735.9,3.2078]
[1762160919125,9.865,3736.3,3735.9,3.2078]
[1762160919322,0.3043,3736.8,3735.9,3.2078]
[1762160919631,9.864,3736.7,3735.9,3.2078]
[1762160920025,9.861,3736.6,3735.9,3.2105864]
[1762160920226,3.2078,3736.5,3735.9,3.2105864]
[1762160920423,9.859,3736.4,3735.9,3.2105864]
[1762160921529,0.9727,3736.0,3735.9,0.0027864]
[1762160921831,0.97555038,3736.0,3735.9,0.0027864]
[1762160924020,0.00285038,3736.0,3735.9,0.0027864]
[1762160924220,0.00285038,3736.0,3735.9,0.9367864]
[1762160924432,4.56635038,3736.0,3735.9,0.0027864]
[1762160925226,3.61085038,3736.0,3735.9,0.0027864]
[1762160925634,9.84685038,3736.0,3735.9,0.0027864]
[1762160926533,10.80235038,3736.0,3735.9,0.0027864]
[1762160927635,10.78835038,3736.0,3735.9,0.0027864]
[1762160928025,0.95835038,3736.0,3735.9,0.0027864]
[1762160928228,10.78435038,3736.0,3735.9,0.0027864]
[1762160929132,11.06135038,3736.0,3735.9,0.0027864]
[1762160930130,0.20897649,3736.9,3735.9,0.0027864]
[1762160930131,2.36912212,3739.2,3738.6,0.934]
[1762160930325,8.95086769,3738.7,3738.4,3.2078]
[1762160930631,8.73,3738.7,3738.1,1.7793]
[1762160930831,8.73,3738.7,3738.6,0.5303]
[1762160931532,8.73,3738.7,3738.6,1.4643]
[1762160931830,0.00289079,3738.7,3738.6,1.46769825]
[1762160932026,3.24889079,3738.7,3738.6,1.46769825]
[1762160932229,9.96689079,3738.7,3738.6,0.53369825]
[1762160934335,0.00289079,3738.7,3738.6,0.53369825]
[1762160934529,3.25489079,3738.7,3738.6,0.53369825]
[1762160936336,0.00289079,3738.7,3738.6,0.53369825]
[1762160936535,3.25489079,3738.7,3738.6,0.53369825]
[1762160941239,3.45866636,3738.7,3738.0,0.5303]
[1762160941434,3.2078,3738.1,3738.0,0.2168]
[1762160941739,13.32360682,3738.1,3738.0,0.2168]
[1762160941933,3.41160682,3738.1,3738.0,0.2168]
[1762160942141,3.2078,3738.1,3738.0,1.1508]
[1762160942339,6.4068,3738.1,3738.0,0.21927526]
[1762160948242,6.61056417,3738.1,3738.0,0.21927526]
[1762160950241,3.41156417,3738.1,3738.0,0.21927526]
[1762160950745,10.86656417,3738.1,3738.0,0.21927526]
[1762160950941,3.2078,3738.1,3738.0,1.15327526]
[1762160951252,6.8528,3738.1,3738.0,1.15327526]
[1762160951747,9.882,3738.1,3738.0,1.15327526]
[1762160952146,3.2078,3738.5,3738.0,1.15327526]
[1762160952351,3.197,3738.4,3738.3,0.9502]
[1762160952647,9.88,3738.4,3738.3,0.9502]
[1762160952944,3.2078,3738.5,3738.4,0.9502]
[1762160953144,0.00289079,3738.7,3738.6,1.4978]
[1762160953351,9.88189079,3738.7,3738.6,1.4978]
[1762160953851,0.00289079,3738.7,3738.6,1.4978]
[1762160954151,9.88189079,3738.7,3738.6,1.4978]
[1762160956140,3.2078,3739.4,3738.6,0.5476]
[1762160956447,3.2078,3740.9,3739.8,1.4978]
[1762160956666,3.2078,3741.4,3740.4,0.5476]
[1762160956851,7.187,3740.8,3740.4,0.5476]
[1762160957158,9.869,3740.7,3740.6,0.9502]
[1762160957449,9.869,3740.7,3740.4,0.5476]
[1762160958355,9.87138646,3740.7,3740.4,0.5476]
[1762160958743,0.6209,3740.5,3740.0,3.2078]
[1762160958948,0.6209,3740.5,3739.8,0.5476]
[1762160963849,0.6209,3739.6,3739.5,3.2078]
[1762160964052,10.4619,3739.6,3739.5,3.2078]
[1762160964447,9.841,3739.6,3739.5,3.2078]
[1762160964658,3.2078,3740.6,3739.5,4.23682]
[1762160964854,9.839,3740.5,3740.0,0.5476]
[1762160965056,9.838,3740.4,3740.0,0.5476]
[1762160965356,0.6209,3740.0,3739.9,3.2078]
[1762160965550,3.8287,3740.0,3739.5,0.5476]
[1762160965750,0.6209,3739.6,3739.4,3.2078]
[1762160965952,0.6368,3739.1,3738.6,3.7554]
[1762160967557,9.83,3739.0,3738.6,3.7554]
[1762160969661,3.5342,3740.0,3739.0,0.5966]
[1762160969964,4.527,3739.9,3739.1,3.2078]
[1762160971760,3.2078,3739.6,3739.0,0.5966]
[1762160973364,4.527,3739.9,3739.0,0.5966]
[1762160973758,3.2078,3739.7,3739.0,0.5966]
[1762160974566,0.6368,3739.1,3739.0,0.5966]
[1762160974862,0.6368,3738.8,3738.7,3.2078]
[1762160975060,0.6368,3738.8,3737.5,0.5966]
[1762160975061,0.6368,3738.8,3738.2,3.2078]
[1762160976165,0.6368,3738.3,3738.2,3.2078]
[1762160976365,10.4418,3738.3,3738.2,3.2078]
[1762160976567,10.4418,3738.3,3738.0,0.55007526]
[1762160977963,3.2078,3738.5,3738.0,0.55007526]
[1762160978157,9.801,3738.4,3738.3,4.1461]
[1762160978356,3.543,3738.4,3738.0,0.55007526]
[1762160979467,3.543,3738.4,3738.3,3.2078]
[1762160980063,0.21024554,3738.8,3738.3,3.2078]
[1762160980263,9.798,3738.7,3738.3,3.2078]
[1762160981065,9.798,3738.7,3738.0,0.55007526]
[1762160982370,0.6368,3738.1,3738.0,0.00247526]
[1762160984168,10.4428,3738.1,3738.0,0.53737526]
[1762160984364,10.4398,3738.1,3738.0,0.53737526]
[1762160984560,0.6368,3738.1,3738.0,0.53737526]
[1762160984765,10.4398,3738.1,3738.0,0.53737526]
[1762160985270,10.4398,3738.1,3738.0,1.48407526]
[1762160985271,9.801,3738.1,3738.0,1.48407526]
[1762160985469,3.2078,3738.5,3738.0,1.48407526]
[1762160985669,9.8,3738.4,3738.0,1.48407526]
[1762160985869,0.4802,3738.1,3738.0,0.53737526]
[1762160986470,3.2078,3738.5,3738.0,0.53737526]
[1762160986659,9.801,3738.4,3738.0,0.53737526]
[1762160987259,3.2078,3738.5,3738.0,0.53737526]
[1762160987469,9.793,3738.4,3738.0,0.53737526]
[1762160988368,0.1538,3736.5,3735.4,1.9925094]
[1762160988565,0.1538,3736.5,3735.1,0.62796423]
[1762160988566,3.2078,3735.5,3735.1,0.62796423]
[1762160988769,3.2078,3735.5,3735.2,0.5229]
[1762160989062,7.02283834,3735.4,3735.2,0.5229]
[1762160989263,4.21606035,3735.3,3735.2,0.52512191]
[1762160990063,1.00826035,3735.3,3735.2,0.52512191]
[1762160990263,4.21606035,3735.3,3735.2,0.52512191]
[1762160991166,18.90886035,3735.3,3734.5,0.5349]
[1762160991371,3.2078,3734.6,3734.5,0.5349]
[1762160991569,14.18606035,3734.6,3734.5,0.5349]
[1762160992163,14.18606035,3734.6,3734.5,0.53797713]
[1762160993072,14.18606035,3734.6,3734.0,0.5349]
[1762160993273,3.2078,3734.1,3734.0,0.5349]
[1762160993472,14.17906035,3734.1,3734.0,0.5349]
[1762160994070,14.17906035,3734.1,3734.0,0.53783039]
[1762160995073,14.17506035,3734.1,3734.0,0.53783039]
[1762160996277,4.21606035,3734.1,3734.0,0.53783039]
[1762160996476,11.06406035,3734.1,3734.0,0.53783039]
[1762160998581,12.4942767,3734.1,3734.0,0.53783039]
[1762160998975,5.6462767,3734.1,3734.0,0.53783039]
[1762160999175,15.5782767,3734.1,3734.0,0.53783039]
[1762160999977,15.5772767,3734.1,3734.0,0.53783039]
[1762161000784,5.6462767,3734.1,3734.0,1.48453039]
[1762161000985,4.21606035,3734.1,3734.0,1.48453039]
[1762161001184,14.14206035,3734.1,3734.0,1.48453039]
[1762161001484,4.21606035,3734.1,3734.0,1.48453039]
[1762161001785,14.13806035,3734.1,3734.0,1.48453039]
[1762161002375,16.03334921,3734.1,3734.0,1.48453039]
[1762161002579,14.13806035,3734.1,3734.0,0.53783039]
[1762161002779,14.13806035,3734.1,3733.8,0.5349]
[1762161002982,1.89562922,3733.9,3733.8,0.5349]
[1762161003276,1.00826035,3733.9,3733.8,0.5349]
[1762161003482,10.93026035,3733.9,3733.8,1.4816]
[1762161003987,10.93026035,3733.9,3733.8,0.5349]
[1762161005586,1.00826035,3733.9,3733.8,1.4816]
[1762161005978,10.45126035,3733.9,3733.8,1.4816]
[1762161006182,10.45126035,3733.9,3733.8,0.5349]
[1762161007788,10.45126035,3733.9,3733.8,0.5383168]
[1762161008088,10.45126035,3733.9,3733.8,0.5349]
[1762161008284,3.37738247,3733.9,3733.8,0.5349]
[1762161008490,1.00826035,3733.9,3733.8,0.5349]
[1762161008691,10.45126035,3733.9,3733.8,0.5349]
[1762161008890,10.45126035,3733.9,3733.8,0.53688262]
[1762161010393,12.82038247,3733.9,3733.8,0.53688262]
[1762161010693,10.45126035,3733.9,3733.8,0.53688262]
[1762161010893,12.82602507,3733.9,3733.8,0.53688262]
[1762161011191,12.82602507,3733.9,3733.5,0.5349]
[1762161011192,10.45126035,3733.9,3733.5,0.5349]
[1762161011394,3.2078,3733.6,3733.5,0.5349]
[1762161011592,4.21606035,3733.6,3733.5,0.5349]
[1762161012296,6.59263097,3733.6,3733.5,0.53750389]
[1762161012887,6.73503097,3733.6,3733.5,0.00260389]
[1762161013091,0.1424,3733.1,3733.0,0.5349]
[1762161013395,14.09706035,3733.1,3733.0,0.5349]
[1762161013596,16.47794484,3733.1,3733.0,1.4242]
[1762161014097,14.09706035,3733.1,3733.0,1.42652641]
[1762161015397,14.09706035,3733.1,3732.4,0.5349]
[1762161015594,2.3860011,3732.7,3732.6,0.8893]
[1762161015793,13.26526145,3732.7,3732.6,0.8893]
[1762161016400,10.88172007,3732.7,3732.6,0.89124092]
[1762161016597,14.97683499,3732.7,3732.0,0.5349]
[1762161016797,3.2078,3732.1,3732.0,0.5349]
[1762161017099,16.46881404,3732.1,3732.0,0.5349]
[1762161017305,3.37901404,3732.1,3732.0,1.51920426]
[1762161017502,6.52458958,3732.6,3732.5,1.2492]
[1762161017503,3.31678958,3732.6,3732.5,1.2492]
[1762161017703,13.16878958,3732.6,3732.0,0.7702]
[1762161017899,9.852,3732.6,3732.0,0.7702]
[1762161018205,0.00245972,3732.7,3732.6,0.8893]
[1762161018507,9.88545972,3732.7,3732.6,0.8893]
[1762161018708,9.88545972,3732.7,3732.6,0.8919097]
[1762161019612,9.88545972,3732.7,3732.6,0.0026097]
[1762161019810,1.92233498,3732.9,3732.6,0.0026097]
[1762161020016,3.31678958,3733.7,3732.7,9.9046]
[1762161020206,7.78,3733.7,3733.2,3.2078]
[1762161020408,3.6524,3734.0,3733.3,0.48221]
[1762161020607,3.6524,3734.0,3733.2,9.9038]
[1762161020913,9.88,3733.9,3733.6,3.2078]
[1762161021113,0.44683644,3734.0,3733.6,3.2078]
[1762161021310,3.927,3733.9,3733.6,3.2078]
[1762161022011,0.44683644,3734.0,3733.6,3.2078]
[1762161022211,4.768,3733.9,3733.2,3.2078]
[1762161022412,0.7565,3733.5,3733.2,3.2078]
[1762161022611,0.7565,3733.5,3733.2,3.69003]
[1762161022911,0.7565,3733.5,3733.2,3.2078]
[1762161023908,0.7565,3733.5,3732.8,44.0078]
[1762161024114,0.44683644,3734.0,3733.4,0.4822]
[1762161024405,0.44683644,3734.0,3733.6,3.2078]
[1762161024804,9.49983644,3734.0,3733.6,3.2078]
[1762161027018,0.8867,3733.7,3733.6,3.2078]
[1762161027408,0.44683644,3734.0,3733.6,3.68998]
[1762161027609,0.44683644,3734.0,3733.6,3.2078]
[1762161029515,0.80164423,3733.9,3733.6,3.2078]
[1762161029815,0.58277428,3733.8,3733.6,3.2078]
[1762161030011,0.58277428,3733.7,3733.6,3.2078]
[1762161030920,0.878,3733.5,3733.2,3.2078]
[1762161031618,1.4639,3733.3,3733.2,3.2078]
[1762161031823,0.878,3733.0,3732.6,0.0026097]
[1762161032021,10.06694882,3732.9,3732.6,0.0026097]
[1762161032315,0.878,3733.0,3732.7,3.2078]
[1762161032522,0.878,3733.0,3732.8,0.48229]
[1762161032710,0.878,3733.0,3732.8,6.6976]
[1762161033320,0.878,3733.0,3732.7,4.6361938]
[1762161034221,0.878,3733.0,3732.8,0.48228]
[1762161034919,0.878,3733.0,3732.7,4.1539038]
[1762161035120,0.878,3733.0,3732.7,4.6361938]
[1762161036220,0.878,3733.0,3732.8,0.48228]
[1762161037221,0.878,3733.0,3732.8,1.4283838]
[1762161037720,0.878,3733.0,3732.8,0.48228]
[1762161038628,0.878,3733.0,3732.7,10.8515038]
[1762161038822,0.878,3733.0,3732.7,4.1539038]
[1762161039324,9.07,3733.5,3733.0,0.48225]
[1762161039524,9.07,3733.5,3733.1,3.2078]
[1762161040427,1.44084493,3734.8,3733.2,6.6968]
[1762161040625,0.878,3736.5,3733.2,6.6968]
[1762161040626,0.878,3736.5,3735.1,3.2078]
[1762161040826,0.21882533,3736.4,3736.3,0.48183]
[1762161041129,0.878,3737.5,3737.0,0.48174]
[1762161041427,0.878,3737.5,3737.1,1.62614279]
[1762161041628,0.878,3737.5,3737.4,3.2078]
[1762161041629,2.34424305,3737.5,3737.4,3.2078]
[1762161041827,2.34424305,3737.5,3737.4,3.89391223]
[1762161042631,0.88034305,3737.5,3737.4,3.89391223]
[1762161043230,2.37104305,3737.5,3737.4,3.2078]
[1762161043528,2.37104305,3737.5,3737.0,3.21065251]
[1762161045229,1.4907,3737.1,3737.0,3.21065251]
[1762161046030,11.4307,3737.1,3737.0,3.21065251]
[1762161046929,11.4307,3737.1,3737.0,0.00285251]
[1762161054938,11.3837,3737.1,3737.0,0.00285251]
[1762161055436,1.4907,3737.1,3737.0,0.00285251]
[1762161055638,11.3717,3737.1,3737.0,0.00285251]
[1762161056936,1.0216,3736.5,3735.7,0.7001491]
[1762161057135,1.0216,3735.0,3734.7,1.89452132]
[1762161057331,1.0216,3735.0,3734.9,1.0366]
[1762161057538,1.0216,3735.5,3734.9,1.0366]
[1762161057539,3.2078,3735.4,3734.9,1.0366]
[1762161057839,6.4936,3735.5,3735.0,1.0366]
[1762161058140,6.4936,3735.5,3735.0,1.03983456]
[1762161061137,6.4936,3735.5,3735.0,0.00323456]
[1762161061446,1.4907,3735.1,3735.0,0.00323456]
[1762161062530,9.926,3735.1,3735.0,0.00323456]
[1762161062738,10.9416,3735.5,3735.4,1.0366]
[1762161062941,3.2078,3736.6,3736.0,1.0366]
[1762161063239,3.2078,3736.6,3735.3,3.2078]
[1762161063240,3.2078,3736.6,3735.4,0.48194]
[1762161063543,1.0216,3735.5,3735.3,3.2078]
[1762161064544,1.4907,3735.4,3735.3,3.2078]
[1762161065337,1.4907,3735.4,3735.0,0.00323456]
[1762161065544,9.933,3735.3,3735.0,0.00323456]
[1762161066944,1.0216,3735.5,3735.0,0.00323456]
[1762161067242,6.8626,3736.0,3735.5,1.0366]
[1762161067633,10.9456,3736.0,3735.5,1.0366]
[1762161068144,10.9456,3736.0,3735.2,3.68978]
[1762161068445,9.922,3735.9,3735.2,3.2078]
[1762161068743,1.0216,3736.0,3735.2,3.68977]
[1762161069746,1.0216,3736.0,3735.2,3.2078]
[1762161071344,9.924,3735.9,3735.2,3.68977]
[1762161071646,9.924,3735.9,3735.2,3.2078]
[1762161073249,9.915,3735.8,3735.2,3.2078]
[1762161073547,1.0216,3736.0,3735.3,0.48196]